fUSD/lending_fUSD_20240216
["ID","MTS","AMOUNT","RATE_DAILY","PERIOD"]
[314179908,1708049432401,-28216.709323,0.00034931,2]
[314179909,1708049432411,-1491.90065685,0.0003499,7]
[314179910,1708049432420,-151.021624,0.00034998,4]
[314179911,1708049432430,-157.021624,0.00034998,5]
[314179912,1708049432441,-4452.99470377,0.00035,30]
[314179913,1708049432451,-33759.78792071,0.00035,7]
[314179914,1708049432462,-2746.083787,0.00035,2]
[314179915,1708049432472,-1500.0,0.00035,3]
[314179916,1708049432482,-2486.50109475,0.00035016,7]
[314179917,1708049432492,-180.93252905,0.00035016,2]
[314179918,1708049432503,-157.92359352,0.00035025,4]
[314179919,1708049432513,-500.0,0.00035026,2]
[314179920,1708049432524,-100000.0,0.00035026,2]
[314179921,1708049432533,-1000.0,0.00035026,2]
[314179922,1708049432543,-6649.051676,0.00035068,2]
[314179923,1708049432555,-35270.886654,0.00035068,2]
[314179924,1708049432565,-33539.94304704,0.0003509,2]
[314179925,1708049432574,-1234.03918155,0.000351,7]
[314179926,1708049432583,-158.03,0.00035146,2]
[314179927,1708049432593,-1460.37980722,0.00035165,2]
[314179928,1708049432602,-24577.69773328,0.00035168,10]
[314179929,1708049432611,-11082.21230883,0.00035168,10]
[314179930,1708049432620,-3047.60838493,0.00035168,10]
[314179931,1708049432629,-151.021624,0.00035198,4]
[314179932,1708049432639,-707.08,0.00035204,2]
[314179933,1708049432648,-157.021624,0.00035298,10]
[314179934,1708049432657,-9308.672347,0.00035342,2]
[314179935,1708049432666,-49379.241316,0.00035342,2]
[314179936,1708049432675,-151.021624,0.00035398,6]
[314179937,1708049432684,-157.021624,0.00035498,5]
[314179938,1708049432694,-65069.07652456,0.00035552,2]
[314179939,1708049432703,-2383.13955093,0.00035576,2]
[314179940,1708049432715,-1284.83,0.0003559,2]
[314179941,1708049432725,-3432.604734,0.000356,2]
[314179942,1708049432734,-151.021624,0.00035698,5]
[314179943,1708049432746,-538.58,0.0003576,2]
[314179944,1708049432755,-467.88239403,0.00035782,7]
[314179945,1708049432765,-335.9,0.00035798,2]
[314179946,1708049432774,-157.021624,0.00035798,6]
[314179947,1708049432784,-151.37,0.00035865,2]
[314179948,1708049432794,-198.11076704,0.000359,2]
[314179949,1708049432804,-14991.52929075,0.000359,8]
[314179950,1708049432813,-158.03,0.00035964,2]
[314179951,1708049432823,-156.43,0.00035971,2]
[314179952,1708049432833,-151.021624,0.00035998,10]
[314179953,1708049432843,-157.021624,0.00035998,6]
[314179954,1708049432852,-5329.97757811,0.00036,10]
[314179955,1708049432862,-5424.22352836,0.00036,2]
[314179956,1708049432871,-4805.646628,0.00036,2]
[314179957,1708049432881,-10638.482682,0.00036,2]
[314179958,1708049432891,-56433.418647,0.00036,2]
[314179959,1708049432900,-151.021624,0.00036198,6]
[314179960,1708049432910,-150.0,0.0003623,2]
[314179961,1708049432919,-157.021624,0.00036298,18]
[314179962,1708049432929,-416.0,0.00036299,2]
[314179963,1708049432939,-151.021624,0.00036398,24]
[314179964,1708049432949,-14991.52929073,0.00036409,9]
[314179965,1708049432959,-154.96449483,0.00036453,2]
[314179966,1708049432972,-157.021624,0.00036498,19]
[314179967,1708049432981,-2837.35432531,0.00036505,2]
[314179968,1708049432990,-65069.07652456,0.00036507,2]
[314179969,1708049433002,-2383.13955093,0.00036554,2]
[314179970,1708049433013,-198.11076703,0.00036629,2]
[314179971,1708049433023,-151.0,0.00036631,120]
[314179972,1708049433033,-584.0,0.00036676,2]
[314179973,1708049433043,-151.021624,0.00036698,18]
[314179974,1708049433053,-209.0,0.00036708,7]
[314179975,1708049433062,-157.021624,0.00036798,19]
[314179976,1708049433072,-2309.92667656,0.000368,2]
[314179977,1708049433081,-1234.03918155,0.000368,8]
[314179978,1708049433091,-209.0,0.00036845,7]
[314179979,1708049433101,-14991.52929073,0.00036918,10]
[314179980,1708049433110,-467.88239403,0.0003698,8]
[314179981,1708049433120,-209.0,0.00036982,7]
[314179982,1708049433129,-151.021624,0.00036998,10]
[314179983,1708049433139,-157.021624,0.00036998,17]
[314179984,1708049433149,-155.0,0.00037,2]
[314179985,1708049433158,-1550.0,0.00037,3]
[314179986,1708049433167,-1250.0,0.00037,2]
[314179987,1708049433177,-312.27049321,0.00037,4]
[314179988,1708049433187,-538.58,0.00037025,2]
[314179989,1708049433198,-207.0,0.00037039,16]
[314179990,1708049433207,-335.9,0.00037075,2]
[314179991,1708049433217,-151.021624,0.00037098,18]
[314179992,1708049433227,-209.0,0.00037119,7]
[314179993,1708049433237,-152.0,0.00037174,3]
[314179994,1708049433249,-151.021624,0.00037198,17]
[314179995,1708049433259,-177.38,0.000372,2]
[314179996,1708049433269,-1284.83,0.00037234,2]
[314179997,1708049433278,-209.0,0.00037256,7]
[314179998,1708049433289,-151.021624,0.00037298,19]
[314179999,1708049433298,-198.11076703,0.00037358,2]
[314180000,1708049433308,-9887.73195218,0.00037359,2]
[314180001,1708049433318,-151.0,0.00037378,30]
[314180002,1708049433327,-209.0,0.00037393,7]
[314180003,1708049433337,-151.021624,0.00037398,24]
[314180004,1708049433346,-58850.8521573,0.000374,5]
[314180005,1708049433356,-1000.0,0.000374,30]
[314180006,1708049433366,-14991.52929073,0.00037427,10]
[314180007,1708049433375,-65069.07652456,0.00037461,2]
[314180008,1708049433385,-707.08,0.00037468,2]
[314180009,1708049433394,-151.021624,0.00037498,25]
[314180010,1708049433403,-3482.13,0.000375,4]
[314180011,1708049433413,-209.0,0.0003753,7]
[314180012,1708049433422,-2383.13955093,0.00037531,2]
[314180013,1708049433431,-156.43,0.00037606,2]
[314180014,1708049433440,-209.0,0.00037667,7]
[314180015,1708049433451,-180.93252905,0.0003769,2]
[314180016,1708049433460,-1460.37980722,0.00037697,2]
[314180017,1708049433470,-173.59709461,0.00037698,10]
[314180018,1708049433480,-151.021624,0.00037698,24]
[314180019,1708049433489,-95640.61595604,0.000377,3]
[314180020,1708049433506,-198000.0,0.000377,3]
[314180021,1708049433586,-1271.24,0.000377,3]
[314180026,1708049437358,-499.99,0.00034798,2]
[314180027,1708049437369,-17.17610711,0.00035352,2]
[314180028,1708049437382,-132.82389289,0.00035352,2]
[314180029,1708049437392,-29854.943137,0.00036506,3]
[314180030,1708049437803,-687.65721504,0.00036506,3]
[314180031,1708049437815,-592.4893317,0.00036506,3]
[314180040,1708049437974,-561.2699,0.00036506,3]
[314180041,1708049437986,-333.4011,0.00036506,3]
[314180042,1708049437998,-1000.93038904,0.00036506,3]
[314180043,1708049438011,-996.68010117,0.00036506,3]
[314180044,1708049438023,-825.57805478,0.00036506,3]
[314180045,1708049438038,-163144.78581733,0.00036506,3]
[314180047,1708049438047,-218.80061177,0.00037648,2]
[314180049,1708049438056,-327058.18221706,0.000377,3]
[314180051,1708049438066,-170.35810011,0.000377,2]
[314180053,1708049438075,-177.38,0.00037748,2]
[314180055,1708049438085,-151.021624,0.00037798,24]
[314180057,1708049438095,-173.63665388,0.000378,2]
[314180059,1708049438105,-5000.0,0.000378,3]
[314180061,1708049438114,-6252.17383832,0.000378,2]
[314180063,1708049438123,-209.0,0.00037804,7]
[314180065,1708049438133,-164.97249765,0.00037836,2]
[314180067,1708049438142,-11765.0,0.0003789,4]
[314180069,1708049438151,-1460.37980722,0.00037897,2]
[314180071,1708049438160,-50000.0,0.000379,4]
[314180073,1708049438169,-636275.635516,0.000379,2]
[314180075,1708049438179,-195.05356565,0.000379,2]
[314180077,1708049438189,-14991.52929073,0.00037936,11]
[314180079,1708049438198,-209.0,0.00037941,7]
[314180081,1708049438207,-64535.6417173,0.0003799,3]
[314180083,1708049438216,-180.93252905,0.0003799,2]
[314180085,1708049438226,-151.021624,0.00037998,18]
[314180087,1708049438236,-16573.69074141,0.00038,2]
[314180089,1708049438245,-94908.83830244,0.00038,2]
[314180091,1708049438255,-156459.87029046,0.00038,2]
[314180094,1708049438265,-668.62,0.00038,7]
[314180096,1708049438274,-155.26580881,0.00038,4]
[314180098,1708049438283,-1189.17834153,0.00038016,3]
[314180100,1708049438293,-251.62786756,0.00038016,3]
[314180102,1708049438302,-1032.65508581,0.00038016,3]
[314180104,1708049438311,-353.977459,0.00038039,4]
[314180105,1708049438320,-1460.37980722,0.00038048,2]
[314180107,1708049438329,-176.9887295,0.0003805,2]
[314180110,1708049438339,-10000.0,0.00038051,3]
[314180112,1708049438349,-257.1353408,0.00038062,4]
[314180113,1708049438358,-209.0,0.00038078,7]
[314180116,1708049438368,-2837.35432531,0.00038084,2]
[314180118,1708049438377,-198.11076703,0.00038086,2]
[314180120,1708049438386,-151.021624,0.00038098,19]
[314180121,1708049438396,-177.648591,0.000381,34]
[314180124,1708049438405,-151.0,0.00038141,7]
[314180126,1708049438414,-217.4,0.00038177,2]
[314180128,1708049438423,-1254.0,0.00038177,2]
[314180129,1708049438432,-431.769,0.00038177,2]
[314180131,1708049438441,-1009.876,0.00038177,2]
[314180134,1708049438451,-858.0,0.00038177,2]
[314180136,1708049438460,-238.579,0.00038177,2]
[314180138,1708049438470,-1138.0,0.00038177,2]
[314180140,1708049438479,-323.06,0.00038177,2]
[314180142,1708049438488,-454.105,0.00038177,2]
[314180144,1708049438498,-150.843,0.00038177,2]
[314180146,1708049438507,-454.0,0.00038177,2]
[314180148,1708049438516,-467.88239403,0.00038177,8]
[314180150,1708049438526,-151.021624,0.00038198,24]
[314180152,1708049438535,-209.0,0.00038215,7]
[314180154,1708049438545,-150.0,0.0003828,2]
[314180156,1708049438554,-19846.0,0.0003828,2]
[314180158,1708049438563,-4060.0,0.0003828,2]
[314180160,1708049438572,-8164.0,0.0003828,2]
[314180162,1708049438580,-2289.0,0.0003828,2]
[314180164,1708049438590,-2927.0,0.0003828,2]
[314180166,1708049438599,-507.851,0.0003828,2]
[314180168,1708049438608,-1037.0,0.0003828,2]
[314180170,1708049438619,-538.58,0.00038289,2]
[314180172,1708049438632,-177.38,0.00038296,2]
[314180174,1708049438641,-151.021624,0.00038298,19]
[314180176,1708049438651,-209.0,0.00038352,7]
[314180178,1708049438661,-335.9,0.00038352,2]
[314180180,1708049438670,-500.0,0.00038356,7]
[314180182,1708049438680,-500.0,0.00038356,7]
[314180184,1708049438690,-500.0,0.00038356,7]
[314180186,1708049438699,-342.90386106,0.00038356,7]
[314180188,1708049438709,-500.0,0.00038356,7]
[314180190,1708049438718,-571.41297017,0.00038356,7]
[314180192,1708049438727,-534.27672967,0.00038356,7]
[314180194,1708049438737,-520.24606305,0.00038356,7]
[314180196,1708049438746,-546.32924457,0.00038356,7]
[314180198,1708049438756,-514.88235895,0.00038356,7]
[314180201,1708049438768,-491.30355256,0.00038356,7]
[314180202,1708049438777,-528.91602298,0.00038356,7]
[314180204,1708049438787,-470.69370078,0.00038356,7]
[314180207,1708049438796,-500.0,0.00038356,7]
[314180209,1708049438806,-318.85897632,0.00038356,7]
[314180211,1708049438815,-490.89099025,0.00038356,7]
[314180213,1708049438824,-542.68080216,0.00038356,7]
[314180215,1708049438834,-500.0,0.00038356,7]
[314180217,1708049438843,-515.78035152,0.00038356,7]
[314180219,1708049438852,-526.46931983,0.00038356,7]
[314180220,1708049438863,-518.75226802,0.00038356,7]
[314180223,1708049438872,-599.79901129,0.00038356,7]
[314180225,1708049438881,-527.17091595,0.00038356,7]
[314180227,1708049438891,-500.0,0.00038356,7]
[314180228,1708049438900,-514.8009809,0.00038356,7]
[314180231,1708049438909,-500.0,0.00038356,7]
[314180233,1708049438918,-507.46544324,0.00038356,7]
[314180234,1708049438927,-521.09391331,0.00038356,7]
[314180237,1708049438937,-554.20099959,0.00038356,7]
[314180238,1708049438946,-534.4866123,0.00038356,7]
[314180240,1708049438955,-523.39687247,0.00038356,7]
[314180242,1708049438964,-208.59410673,0.00038356,7]
[314180245,1708049438975,-515.51146474,0.00038356,7]
[314180247,1708049438984,-505.52272167,0.00038356,7]
[314180249,1708049438993,-546.93725848,0.00038356,7]
[314180251,1708049439003,-514.01725901,0.00038356,7]
[314180253,1708049439015,-500.0,0.00038356,7]
[314180255,1708049439024,-516.71461023,0.00038356,7]
[314180257,1708049439033,-523.3114251,0.00038356,7]
[314180259,1708049439042,-489.55662512,0.00038356,7]
[314180261,1708049439052,-566.88789384,0.00038356,7]
[314180263,1708049439061,-524.50924556,0.00038356,7]
[314180265,1708049439072,-499.99582489,0.00038356,7]
[314180267,1708049439081,-511.07582744,0.00038356,7]
[314180269,1708049439091,-500.0,0.00038356,7]
[314180271,1708049439100,-455.6310498,0.00038356,7]
[314180273,1708049439109,-5000.0,0.00038356,14]
[314180275,1708049439119,-500.0,0.00038356,7]
[314180277,1708049439128,-500.0,0.00038356,7]
[314180279,1708049439137,-315.67215555,0.00038356,7]
[314180282,1708049439146,-553.60394107,0.00038356,7]
[314180285,1708049439155,-500.0,0.00038356,7]
[314180287,1708049439165,-500.86541986,0.00038356,7]
[314180289,1708049439175,-551.41796048,0.00038356,7]
[314180291,1708049439185,-500.0,0.00038356,7]
[314180293,1708049439194,-540.87691937,0.00038356,7]
[314180295,1708049439203,-500.0,0.00038356,7]
[314180297,1708049439212,-564.27692392,0.00038356,7]
[314180299,1708049439221,-503.16420493,0.00038356,7]
[314180301,1708049439230,-520.84932787,0.00038356,7]
[314180303,1708049439239,-537.48342321,0.00038356,7]
[314180305,1708049439249,-500.0,0.00038356,7]
[314180307,1708049439258,-552.86422913,0.00038356,7]
[314180309,1708049439268,-231.60466367,0.00038356,7]
[314180311,1708049439278,-500.0,0.00038356,7]
[314180313,1708049439287,-521.2072906,0.00038356,7]
[314180315,1708049439296,-535.41327827,0.00038356,7]
[314180317,1708049439306,-578.84257421,0.00038356,7]
[314180319,1708049439315,-500.0,0.00038356,7]
[314180321,1708049439325,-500.0,0.00038356,7]
[314180323,1708049439334,-547.94257592,0.00038356,7]
[314180325,1708049439343,-564.30044248,0.00038356,7]
[314180327,1708049439352,-527.24875294,0.00038356,7]
[314180329,1708049439361,-490.00531692,0.00038356,7]
[314180331,1708049439371,-529.9390517,0.00038356,7]
[314180333,1708049439380,-1000.0,0.00038356,14]
[314180335,1708049439389,-198.765145,0.00038356,7]
[314180337,1708049439398,-550.20860012,0.00038356,7]
[314180339,1708049439408,-233.98724149,0.00038356,7]
[314180341,1708049439417,-511.45886209,0.00038356,7]
[314180343,1708049439426,-528.16775179,0.00038356,7]
[314180345,1708049439435,-513.2846658,0.00038356,7]
[314180347,1708049439444,-454.19664251,0.00038356,7]
[314180349,1708049439453,-510.81320037,0.00038356,7]
[314180351,1708049439462,-534.46512684,0.00038356,7]
[314180353,1708049439473,-504.81100395,0.00038356,7]
[314180355,1708049439482,-531.59033274,0.00038356,7]
[314180357,1708049439492,-514.93908967,0.00038356,7]
[314180359,1708049439504,-537.70548668,0.00038356,7]
[314180361,1708049439514,-518.11059584,0.00038356,7]
[314180363,1708049439524,-522.36207732,0.00038356,7]
[314180365,1708049439534,-554.82404435,0.00038356,7]
[314180367,1708049439544,-185.60052022,0.00038356,2]
[314180368,1708049439553,-500.0,0.00038356,7]
[314180369,1708049439562,-518.8669804,0.00038356,7]
[314180370,1708049439572,-546.29529059,0.00038356,7]
[314180371,1708049439581,-545.5262098,0.00038356,7]
[314180372,1708049439590,-500.0,0.00038356,7]
[314180373,1708049439600,-528.42495956,0.00038356,7]
[314180374,1708049439608,-528.81011558,0.00038356,7]
[314180376,1708049439618,-569.75041604,0.00038356,7]
[314180378,1708049439627,-505.79144142,0.00038356,7]
[314180380,1708049439636,-500.0,0.00038356,7]
[314180382,1708049439645,-550.61952341,0.00038356,7]
[314180384,1708049439655,-500.0,0.00038356,7]
[314180386,1708049439664,-521.74377292,0.00038356,7]
[314180388,1708049439673,-500.0,0.00038356,7]
[314180390,1708049439683,-214.89990239,0.00038356,7]
[314180392,1708049439692,-515.33706477,0.00038356,7]
[314180394,1708049439701,-584.59002281,0.00038356,7]
[314180396,1708049439710,-500.0,0.00038356,7]
[314180398,1708049439719,-610.97234313,0.00038356,7]
[314180400,1708049439728,-500.0,0.00038356,7]
[314180402,1708049439737,-478.94013848,0.00038356,7]
[314180404,1708049439746,-500.0,0.00038356,7]
[314180406,1708049439757,-547.22467518,0.00038356,7]
[314180408,1708049439767,-500.0,0.00038356,7]
[314180411,1708049439777,-545.22355827,0.00038356,7]
[314180412,1708049439787,-541.49479608,0.00038356,7]
[314180414,1708049439796,-500.0,0.00038356,7]
[314180416,1708049439806,-500.0,0.00038356,7]
[314180418,1708049439816,-500.0,0.00038356,7]
[314180420,1708049439825,-500.0,0.00038356,7]
[314180422,1708049439835,-527.06553297,0.00038356,7]
[314180424,1708049439844,-565.95550692,0.00038356,7]
[314180426,1708049439853,-595.77,0.00038356,7]
[314180428,1708049439862,-671.28,0.00038356,7]
[314180430,1708049439871,-500.0,0.00038356,7]
[314180432,1708049439880,-500.0,0.00038356,7]
[314180434,1708049439889,-500.0,0.00038356,7]
[314180436,1708049439899,-500.0,0.00038356,7]
[314180438,1708049439908,-508.9,0.00038356,7]
[314180440,1708049439917,-578.3222031,0.00038356,7]
[314180442,1708049439926,-483.78958449,0.00038356,7]
[314180444,1708049439936,-521.8278041,0.00038356,7]
[314180446,1708049439945,-500.0,0.00038356,7]
[314180448,1708049439954,-486.25242638,0.00038356,7]
[314180450,1708049439963,-506.04481929,0.00038356,7]
[314180452,1708049439974,-529.89677726,0.00038356,7]
[314180455,1708049439985,-500.0,0.00038356,7]
[314180457,1708049439994,-500.0,0.00038356,7]
[314180458,1708049440005,-500.0,0.00038356,7]
[314180461,1708049440018,-500.0,0.00038356,7]
[314180462,1708049440027,-500.0,0.00038356,7]
[314180464,1708049440036,-500.0,0.00038356,7]
[314180467,1708049440046,-500.0,0.00038356,7]
[314180469,1708049440056,-850.98,0.00038356,7]
[314180471,1708049440064,-500.0,0.00038356,7]
[314180473,1708049440074,-500.0,0.00038356,7]
[314180475,1708049440085,-500.0,0.00038356,7]
[314180477,1708049440094,-1791.32,0.00038356,7]
[314180479,1708049440103,-536.59785184,0.00038356,7]
[314180481,1708049440113,-617.61,0.00038356,7]
[314180483,1708049440121,-500.0,0.00038356,7]
[314180484,1708049440130,-500.0,0.00038356,7]
[314180487,1708049440140,-514.55898028,0.00038356,7]
[314180489,1708049440149,-551.39109692,0.00038356,7]
[314180491,1708049440158,-500.0,0.00038356,7]
[314180493,1708049440167,-500.0,0.00038356,7]
[314180495,1708049440176,-517.83914836,0.00038356,7]
[314180497,1708049440186,-500.0,0.00038356,7]
[314180498,1708049440195,-500.0,0.00038356,7]
[314180500,1708049440204,-552.44452732,0.00038356,7]
[314180502,1708049440213,-519.08284938,0.00038356,7]
[314180504,1708049440222,-500.0,0.00038356,7]
[314180506,1708049440231,-500.0,0.00038356,7]
[314180508,1708049440240,-570.85061875,0.00038356,7]
[314180510,1708049440251,-500.0,0.00038356,7]
[314180512,1708049440261,-500.0,0.00038356,7]
[314180514,1708049440272,-562.4316671,0.00038356,7]
[314180516,1708049440282,-500.0,0.00038356,7]
[314180518,1708049440292,-513.65798475,0.00038356,7]
[314180520,1708049440302,-564.76163475,0.00038356,7]
[314180522,1708049440313,-500.0,0.00038356,7]
[314180524,1708049440324,-250.0,0.00038356,7]
[314180526,1708049440335,-554.45432506,0.00038356,7]
[314180528,1708049440345,-500.0,0.00038356,7]
[314180530,1708049440355,-500.0,0.00038356,7]
[314180533,1708049440366,-575.41845283,0.00038356,7]
[314180535,1708049440376,-500.0,0.00038356,7]
[314180537,1708049440385,-576.41785819,0.00038356,7]
[314180538,1708049440395,-509.72942185,0.00038356,7]
[314180541,1708049440404,-500.0,0.00038356,7]
[314180543,1708049440414,-589.12256117,0.00038356,7]
[314180544,1708049440423,-500.0,0.00038356,7]
[314180546,1708049440431,-568.96588293,0.00038356,7]
[314180548,1708049440440,-500.0,0.00038356,7]
[314180550,1708049440450,-500.0,0.00038356,7]
[314180552,1708049440459,-589.18326273,0.00038356,7]
[314180554,1708049440468,-500.0,0.00038356,7]
[314180557,1708049440477,-500.0,0.00038356,7]
[314180559,1708049440486,-570.31346315,0.00038356,7]
[314180560,1708049440496,-551.59716109,0.00038356,7]
[314180563,1708049440506,-500.0,0.00038356,7]
[314180565,1708049440516,-500.0,0.00038356,7]
[314180566,1708049440524,-543.8295007,0.00038356,7]
[314180568,1708049440534,-500.0,0.00038356,7]
[314180570,1708049440543,-500.0,0.00038356,7]
[314180573,1708049440552,-1327.62,0.00038356,7]
[314180575,1708049440561,-542.9294296,0.00038356,7]
[314180577,1708049440571,-500.0,0.00038356,7]
[314180579,1708049440580,-500.0,0.00038356,7]
[314180581,1708049440590,-616.60315571,0.00038356,7]
[314180582,1708049440599,-500.0,0.00038356,7]
[314180584,1708049440608,-500.0,0.00038356,7]
[314180586,1708049440617,-625.8306625,0.00038356,7]
[314180588,1708049440626,-500.0,0.00038356,7]
[314180590,1708049440635,-500.0,0.00038356,7]
[314180592,1708049440644,-593.18498037,0.00038356,7]
[314180594,1708049440653,-500.0,0.00038356,7]
[314180596,1708049440662,-561.2,0.00038356,7]
[314180598,1708049440671,-213.28417898,0.00038356,7]
[314180600,1708049440680,-568.00669328,0.00038356,7]
[314180602,1708049440689,-500.0,0.00038356,7]
[314180604,1708049440699,-678.37,0.00038356,7]
[314180607,1708049440709,-500.0,0.00038356,7]
[314180609,1708049440718,-574.46,0.00038356,7]
[314180611,1708049440727,-500.0,0.00038356,7]
[314180613,1708049440736,-500.0,0.00038356,7]
[314180615,1708049440745,-500.0,0.00038356,7]
[314180616,1708049440757,-536.23264529,0.00038356,7]
[314180618,1708049440766,-500.0,0.00038356,7]
[314180621,1708049440775,-500.0,0.00038356,7]
[314180622,1708049440784,-530.62392186,0.00038356,7]
[314180625,1708049440793,-532.10339594,0.00038356,7]
[314180627,1708049440804,-563.47256085,0.00038356,7]
[314180629,1708049440813,-536.41544918,0.00038356,7]
[314180631,1708049440822,-521.88,0.00038356,7]
[314180633,1708049440832,-500.0,0.00038356,7]
[314180635,1708049440840,-589.35969243,0.00038356,7]
[314180637,1708049440849,-500.0,0.00038356,7]
[314180639,1708049440859,-561.63568545,0.00038356,7]
[314180641,1708049440868,-632.89738664,0.00038356,7]
[314180643,1708049440877,-500.0,0.00038356,7]
[314180644,1708049440886,-500.0,0.00038356,7]
[314180647,1708049440895,-519.68242313,0.00038356,7]
[314180648,1708049440904,-500.0,0.00038356,7]
[314180650,1708049440914,-596.00071743,0.00038356,7]
[314180652,1708049440923,-500.0,0.00038356,7]
[314180654,1708049440932,-500.0,0.00038356,7]
[314180656,1708049440942,-500.0,0.00038356,7]
[314180659,1708049440952,-547.65064122,0.00038356,7]
[314180660,1708049440961,-500.0,0.00038356,7]
[314180662,1708049440971,-558.01033002,0.00038356,7]
[314180664,1708049440980,-500.0,0.00038356,7]
[314180666,1708049440990,-500.0,0.00038356,7]
[314180668,1708049441001,-7593.28,0.00038356,7]
[314180670,1708049441014,-593.11874454,0.00038356,7]
[314180671,1708049441023,-519.17197243,0.00038356,7]
[314180672,1708049441034,-500.0,0.00038356,7]
[314180673,1708049441043,-500.0,0.00038356,7]
[314180674,1708049441053,-500.0,0.00038356,7]
[314180675,1708049441062,-500.0,0.00038356,7]
[314180676,1708049441071,-500.0,0.00038356,7]
[314180678,1708049441082,-609.69545226,0.00038356,7]
[314180680,1708049441091,-576.92090007,0.00038356,7]
[314180682,1708049441101,-594.19727419,0.00038356,7]
[314180684,1708049441111,-729.85,0.00038356,7]
[314180686,1708049441121,-500.0,0.00038356,7]
[314180688,1708049441130,-500.0,0.00038356,7]
[314180690,1708049441139,-500.0,0.00038356,7]
[314180692,1708049441148,-500.0,0.00038356,7]
[314180694,1708049441157,-560.67967784,0.00038356,7]
[314180696,1708049441167,-500.0,0.00038356,7]
[314180698,1708049441176,-500.0,0.00038356,7]
[314180700,1708049441186,-583.72,0.00038356,7]
[314180702,1708049441195,-516.5283882,0.00038356,7]
[314180704,1708049441205,-500.0,0.00038356,7]
[314180706,1708049441214,-526.37534061,0.00038356,7]
[314180708,1708049441223,-500.0,0.00038356,7]
[314180710,1708049441232,-500.0,0.00038356,7]
[314180712,1708049441242,-480.98436698,0.00038356,7]
[314180714,1708049441252,-500.0,0.00038356,7]
[314180716,1708049441261,-500.0,0.00038356,7]
[314180718,1708049441270,-500.0,0.00038356,7]
[314180720,1708049441279,-318.68083954,0.00038356,7]
[314180722,1708049441288,-500.0,0.00038356,7]
[314180724,1708049441297,-7685.77,0.00038356,7]
[314180726,1708049441306,-500.0,0.00038356,7]
[314180728,1708049441315,-500.0,0.00038356,7]
[314180730,1708049441324,-500.0,0.00038356,7]
[314180732,1708049441333,-500.0,0.00038356,7]
[314180734,1708049441342,-500.0,0.00038356,7]
[314180736,1708049441351,-1481.67,0.00038356,7]
[314180738,1708049441360,-577.15,0.00038356,7]
[314180740,1708049441369,-338.71741755,0.00038356,7]
[314180742,1708049441378,-500.0,0.00038356,7]
[314180744,1708049441387,-633.73003296,0.00038356,7]
[314180746,1708049441397,-948.42759781,0.00038356,7]
[314180748,1708049441407,-500.0,0.00038356,7]
[314180750,1708049441417,-500.0,0.00038356,7]
[314180752,1708049441426,-10000.0,0.00038356,7]
[314180754,1708049441435,-500.0,0.00038356,7]
[314180756,1708049441445,-500.0,0.00038356,7]
[314180758,1708049441455,-1111.9,0.00038356,7]
[314180760,1708049441464,-500.0,0.00038356,7]
[314180762,1708049441474,-569.19964425,0.00038356,7]
[314180764,1708049441483,-554.92028565,0.00038356,7]
[314180766,1708049441493,-500.0,0.00038356,7]
[314180768,1708049441503,-500.0,0.00038356,7]
[314180771,1708049441512,-532.15458845,0.00038356,2]
[314180773,1708049441522,-500.0,0.00038356,7]
[314180788,1708049441662,-702.13858382,0.00038356,7]
[314180790,1708049441672,-659.34184015,0.00038356,7]
[314180792,1708049441682,-500.0,0.00038356,7]
[314180795,1708049441692,-674.55,0.00038356,7]
[314180796,1708049441701,-500.0,0.00038356,7]
[314180798,1708049441711,-500.0,0.00038356,7]